[Event "*** Titled Tuesday Blitz"]
[Site "Chess.com"]
[Date "2019.10.01"]
[Round "1"]
[White "Roenko_Artur"]
[Black "Didici"]
[Result "1/2-1/2"]
[WhiteElo "2260"]
[BlackElo "2606"]
[TimeControl "180+2"]
[EndTime "13:10:50 PDT"]
[Termination "Game drawn - insufficient material"]

1. e4 {[%clk 0:03:01.2]} 1... e5 {[%clk 0:02:59.8]} 2. Nf3 {[%clk 0:03:01.4]}
2... Nc6 {[%clk 0:03:00.6]} 3. d4 {[%clk 0:03:02.7]} 3... exd4 {[%clk
0:03:00.8]} 4. Nxd4 {[%clk 0:03:04.6]} 4... Bc5 {[%clk 0:03:01.7]} 5. Be3 {[%clk
0:03:05.1]} 5... Qf6 {[%clk 0:03:02.3]} 6. c3 {[%clk 0:03:06.1]} 6... Qg6 {[%clk
0:03:03]} 7. Nd2 {[%clk 0:02:53]} 7... Nf6 {[%clk 0:02:59]} 8. Nb5 {[%clk
0:02:23.6]} 8... Bxe3 {[%clk 0:02:58.4]} 9. Nxc7+ {[%clk 0:02:17]} 9... Kd8
{[%clk 0:02:58.2]} 10. Nxa8 {[%clk 0:02:17.9]} 10... Bxd2+ {[%clk 0:02:27.5]}
11. Qxd2 {[%clk 0:02:18.1]} 11... Qxe4+ {[%clk 0:02:29.1]} 12. Be2 {[%clk
0:02:07.7]} 12... Re8 {[%clk 0:02:29.7]} 13. Kf1 {[%clk 0:02:02.8]} 13... b6
{[%clk 0:02:21.2]} 14. Bf3 {[%clk 0:01:58.2]} 14... Qc4+ {[%clk 0:02:09.2]} 15.
Kg1 {[%clk 0:01:54.5]} 15... Bb7 {[%clk 0:02:08.5]} 16. b3 {[%clk 0:01:47]}
16... Qc5 {[%clk 0:02:03.9]} 17. Nxb6 {[%clk 0:01:29.1]} 17... axb6 {[%clk
0:02:03.6]} 18. h3 {[%clk 0:01:29.8]} 18... Ne4 {[%clk 0:01:46]} 19. Bxe4 {[%clk
0:01:21.4]} 19... Rxe4 {[%clk 0:01:47.9]} 20. Rd1 {[%clk 0:01:14.2]} 20... Ne5
{[%clk 0:01:46.7]} 21. Kh2 {[%clk 0:01:13.2]} 21... Rh4 {[%clk 0:01:39.4]} 22.
Qg5+ {[%clk 0:00:54]} 22... Qe7 {[%clk 0:01:39]} 23. Qxe7+ {[%clk 0:00:49.9]}
23... Kxe7 {[%clk 0:01:40.9]} 24. Rhe1 {[%clk 0:00:50.4]} 24... d6 {[%clk
0:01:20.5]} 25. g3 {[%clk 0:00:51.6]} 25... Re4 {[%clk 0:01:19.1]} 26. Rxe4
{[%clk 0:00:26.1]} 26... Bxe4 {[%clk 0:01:21]} 27. g4 {[%clk 0:00:21.9]} 27...
g5 {[%clk 0:01:15.7]} 28. Kg3 {[%clk 0:00:21.3]} 28... Bc6 {[%clk 0:01:08]} 29.
Re1 {[%clk 0:00:20.9]} 29... f6 {[%clk 0:01:04.7]} 30. f4 {[%clk 0:00:20]} 30...
gxf4+ {[%clk 0:01:05.6]} 31. Kxf4 {[%clk 0:00:20.8]} 31... Kf7 {[%clk
0:01:07.5]} 32. Kg3 {[%clk 0:00:21.6]} 32... Ke6 {[%clk 0:01:05.9]} 33. c4
{[%clk 0:00:20.9]} 33... d5 {[%clk 0:01:03.6]} 34. cxd5+ {[%clk 0:00:21.2]}
34... Bxd5 {[%clk 0:01:05.5]} 35. Rc1 {[%clk 0:00:22.3]} 35... Nc6 {[%clk
0:01:02.4]} 36. Re1+ {[%clk 0:00:22.2]} 36... Kd6 {[%clk 0:01:02.1]} 37. Re8
{[%clk 0:00:22.8]} 37... Nb4 {[%clk 0:01:00.4]} 38. Rb8 {[%clk 0:00:23.3]} 38...
Kc7 {[%clk 0:00:58.3]} 39. Rh8 {[%clk 0:00:22.9]} 39... Be4 {[%clk 0:00:55.4]}
40. Re8 {[%clk 0:00:20.6]} 40... Bb1 {[%clk 0:00:52.1]} 41. a3 {[%clk
0:00:18.9]} 41... Nc2 {[%clk 0:00:50.4]} 42. a4 {[%clk 0:00:14.6]} 42... Nd4
{[%clk 0:00:48.9]} 43. Rf8 {[%clk 0:00:12.2]} 43... Nxb3 {[%clk 0:00:47.5]} 44.
Rxf6 {[%clk 0:00:12.9]} 44... Nc5 {[%clk 0:00:48.1]} 45. Rf4 {[%clk 0:00:10.3]}
45... Kc6 {[%clk 0:00:26.6]} 46. h4 {[%clk 0:00:10.9]} 46... Bc2 {[%clk
0:00:26.2]} 47. g5 {[%clk 0:00:10.8]} 47... Bxa4 {[%clk 0:00:24.5]} 48. h5
{[%clk 0:00:11.8]} 48... Bc2 {[%clk 0:00:20.5]} 49. Rf6+ {[%clk 0:00:11.7]}
49... Kc7 {[%clk 0:00:16.8]} 50. Kh4 {[%clk 0:00:10.7]} 50... b5 {[%clk
0:00:17.3]} 51. g6 {[%clk 0:00:06]} 51... hxg6 {[%clk 0:00:19.2]} 52. hxg6
{[%clk 0:00:07.1]} 52... b4 {[%clk 0:00:19.3]} 53. g7 {[%clk 0:00:08.1]} 53...
Bh7 {[%clk 0:00:19.6]} 54. Rf8 {[%clk 0:00:08.9]} 54... b3 {[%clk 0:00:20.3]}
55. g8=Q {[%clk 0:00:08.6]} 55... Bxg8 {[%clk 0:00:20.4]} 56. Rxg8 {[%clk
0:00:10.1]} 56... Ne4 {[%clk 0:00:18.6]} 57. Rg1 {[%clk 0:00:09.2]} 57... Nd2
{[%clk 0:00:17.6]} 58. Rd1 {[%clk 0:00:09.3]} 58... b2 {[%clk 0:00:17.7]} 59.
Kg3 {[%clk 0:00:09]} 59... Kc6 {[%clk 0:00:06.8]} 60. Kf4 {[%clk 0:00:10]} 60...
Kc5 {[%clk 0:00:05.4]} 61. Ke3 {[%clk 0:00:10.8]} 61... Nc4+ {[%clk 0:00:04.4]}
62. Kd3 {[%clk 0:00:09.8]} 62... Na3 {[%clk 0:00:02.6]} 63. Kc3 {[%clk
0:00:09.1]} 63... b1=Q {[%clk 0:00:04.5]} 64. Rxb1 {[%clk 0:00:09.9]} 64...
Nxb1+ {[%clk 0:00:06.4]} 1/2-1/2

[Event "*** Titled Tuesday Blitz"]
[Site "Chess.com"]
[Date "2019.10.01"]
[Round "1"]
[White "DrMelekess"]
[Black "kacprekt"]
[Result "1-0"]
[WhiteElo "2737"]
[BlackElo "2382"]
[TimeControl "180+2"]
[EndTime "13:10:58 PDT"]
[Termination "DrMelekess won by resignation"]

1. d4 {[%clk 0:02:56.8]} 1... Nf6 {[%clk 0:03:00.5]} 2. Nf3 {[%clk 0:02:57.2]}
2... g6 {[%clk 0:03:01.4]} 3. Nbd2 {[%clk 0:02:57]} 3... d5 {[%clk 0:03:01.1]}
4. e3 {[%clk 0:02:57]} 4... Bg7 {[%clk 0:03:01.7]} 5. b4 {[%clk 0:02:57.7]} 5...
a5 {[%clk 0:02:58.5]} 6. b5 {[%clk 0:02:56]} 6... c6 {[%clk 0:02:59.7]} 7. c4
{[%clk 0:02:50.4]} 7... O-O {[%clk 0:02:58.4]} 8. a4 {[%clk 0:02:50.1]} 8...
dxc4 {[%clk 0:02:55]} 9. Bxc4 {[%clk 0:02:49.4]} 9... cxb5 {[%clk 0:02:54.9]}
10. axb5 {[%clk 0:02:49.3]} 10... Nbd7 {[%clk 0:02:55.9]} 11. Bb2 {[%clk
0:02:37.5]} 11... Nb6 {[%clk 0:02:56.8]} 12. Bb3 {[%clk 0:02:36.2]} 12... Bf5
{[%clk 0:02:56.7]} 13. O-O {[%clk 0:02:35.3]} 13... Bd3 {[%clk 0:02:57.5]} 14.
Re1 {[%clk 0:02:19.9]} 14... Bxb5 {[%clk 0:02:58]} 15. e4 {[%clk 0:02:20.6]}
15... a4 {[%clk 0:02:52.2]} 16. Ba2 {[%clk 0:02:21]} 16... Rc8 {[%clk
0:02:34.4]} 17. Ba3 {[%clk 0:02:15.3]} 17... Bd3 {[%clk 0:02:17]} 18. h3 {[%clk
0:02:04.1]} 18... Bc2 {[%clk 0:02:10.5]} 19. Qe2 {[%clk 0:02:02.9]} 19... Nh5
{[%clk 0:01:56.9]} 20. Qe3 {[%clk 0:01:59.8]} 20... Qc7 {[%clk 0:01:19.5]} 21.
Rac1 {[%clk 0:01:34.7]} 21... Nf4 {[%clk 0:01:16.4]} 22. Bb1 {[%clk 0:01:28.8]}
22... Bh6 {[%clk 0:00:23.9]} 23. Rxc2 {[%clk 0:01:04]} 23... Nxh3+ {[%clk
0:00:24.4]} 24. gxh3 {[%clk 0:01:04.2]} 24... Bxe3 {[%clk 0:00:24.8]} 25. Rxc7
{[%clk 0:01:04.5]} 25... Rxc7 {[%clk 0:00:11.8]} 26. Rxe3 {[%clk 0:01:01.6]}
26... Rfc8 {[%clk 0:00:12.9]} 27. Bb2 {[%clk 0:00:43.3]} 27... Nc4 {[%clk
0:00:11.1]} 28. Nxc4 {[%clk 0:00:43.3]} 28... Rxc4 {[%clk 0:00:13]} 29. Bd3
{[%clk 0:00:15.3]} 29... Rb4 {[%clk 0:00:12.3]} 30. Ba3 {[%clk 0:00:15.6]} 30...
Rb3 {[%clk 0:00:13.7]} 31. Bxe7 {[%clk 0:00:16.9]} 31... b5 {[%clk 0:00:14.9]}
32. d5 {[%clk 0:00:16.3]} 32... a3 {[%clk 0:00:15]} 33. Bf6 {[%clk 0:00:14.1]}
33... Rc1+ {[%clk 0:00:13.3]} 34. Kg2 {[%clk 0:00:14.9]} 34... a2 {[%clk
0:00:14.4]} 35. d6 {[%clk 0:00:16.2]} 35... Rd1 {[%clk 0:00:09.2]} 36. Bc2
{[%clk 0:00:12.8]} 36... a1=Q {[%clk 0:00:06.4]} 37. Bxa1 {[%clk 0:00:12.9]}
37... Rxe3 {[%clk 0:00:06.4]} 38. Bxd1 {[%clk 0:00:13.3]} 38... Rd3 {[%clk
0:00:07.8]} 39. Be2 {[%clk 0:00:11.7]} 39... Rxd6 {[%clk 0:00:08.8]} 40. Bxb5
{[%clk 0:00:12.9]} 40... Re6 {[%clk 0:00:09.8]} 41. e5 {[%clk 0:00:13.2]} 41...
Rb6 {[%clk 0:00:11]} 42. Bd3 {[%clk 0:00:11.9]} 42... h6 {[%clk 0:00:09.7]} 43.
Bd4 {[%clk 0:00:12.2]} 43... Rc6 {[%clk 0:00:11]} 44. Be4 {[%clk 0:00:13.2]}
44... Rc4 {[%clk 0:00:12.2]} 45. Bd5 {[%clk 0:00:14.2]} 45... Ra4 {[%clk
0:00:12.9]} 46. e6 {[%clk 0:00:15]} 46... fxe6 {[%clk 0:00:12]} 47. Bxe6+ {[%clk
0:00:16.5]} 47... Kh7 {[%clk 0:00:13.2]} 48. h4 {[%clk 0:00:18.1]} 48... Ra6
{[%clk 0:00:13.8]} 49. Bh3 {[%clk 0:00:16.9]} 49... Ra5 {[%clk 0:00:14.8]} 50.
Be3 {[%clk 0:00:17.8]} 50... Ra3 {[%clk 0:00:15.8]} 51. Kg3 {[%clk 0:00:18.9]}
51... Ra2 {[%clk 0:00:17]} 52. Bf1 {[%clk 0:00:18.5]} 52... Ra3 {[%clk
0:00:17.9]} 53. Bc4 {[%clk 0:00:19.5]} 53... Rc3 {[%clk 0:00:18.9]} 54. Bd5
{[%clk 0:00:19.2]} 54... Rc8 {[%clk 0:00:19.5]} 55. Be4 {[%clk 0:00:20.1]} 55...
Re8 {[%clk 0:00:20.6]} 56. Bd3 {[%clk 0:00:20.6]} 56... Rd8 {[%clk 0:00:22]} 57.
Bd4 {[%clk 0:00:21.8]} 57... Rd6 {[%clk 0:00:22.4]} 58. h5 {[%clk 0:00:21.6]}
58... Kg8 {[%clk 0:00:19]} 59. hxg6 {[%clk 0:00:21.9]} 59... Rc6 {[%clk
0:00:17.2]} 60. Be4 {[%clk 0:00:21.1]} 60... Rd6 {[%clk 0:00:18.1]} 61. Be5
{[%clk 0:00:22.3]} 61... Rd7 {[%clk 0:00:19.2]} 62. Bf5 {[%clk 0:00:20.3]} 62...
Re7 {[%clk 0:00:20.6]} 63. Bd3 {[%clk 0:00:21]} 63... h5 {[%clk 0:00:18.1]} 64.
Bc4+ {[%clk 0:00:21.2]} 64... Kf8 {[%clk 0:00:19.5]} 65. Bd6 {[%clk 0:00:21.3]}
65... h4+ {[%clk 0:00:20.2]} 66. Nxh4 {[%clk 0:00:22.1]} 66... Kg7 {[%clk
0:00:21.5]} 67. Bxe7 {[%clk 0:00:22.6]} 67... Kh6 {[%clk 0:00:23.1]} 68. Kg4
{[%clk 0:00:23]} 68... Kg7 {[%clk 0:00:20.1]} 69. Kg5 {[%clk 0:00:24.2]} 1-0

[Event "*** Titled Tuesday Blitz"]
[Site "Chess.com"]
[Date "2019.10.01"]
[Round "1"]
[White "IMRosen"]
[Black "aa175"]
[Result "1-0"]
[WhiteElo "2648"]
[BlackElo "2294"]
[TimeControl "180+2"]
[EndTime "13:11:16 PDT"]
[Termination "IMRosen won by resignation"]

1. d4 {[%clk 0:03:01.9]} 1... Nf6 {[%clk 0:02:57.6]} 2. Bf4 {[%clk 0:02:59.6]}
2... d5 {[%clk 0:02:51.5]} 3. e3 {[%clk 0:03:00.4]} 3... e6 {[%clk 0:02:33]} 4.
Nd2 {[%clk 0:03:01]} 4... c5 {[%clk 0:02:34.2]} 5. c3 {[%clk 0:03:02]} 5... Nc6
{[%clk 0:02:32.7]} 6. Ngf3 {[%clk 0:03:03.4]} 6... cxd4 {[%clk 0:02:33.6]} 7.
exd4 {[%clk 0:03:03.4]} 7... Nh5 {[%clk 0:02:35]} 8. Be3 {[%clk 0:03:01.3]} 8...
Bd6 {[%clk 0:02:35.6]} 9. Ne5 {[%clk 0:02:59.1]} 9... Nf6 {[%clk 0:02:21.3]} 10.
Bb5 {[%clk 0:02:49.4]} 10... Qb6 {[%clk 0:02:11.4]} 11. Qb3 {[%clk 0:02:43.3]}
11... Bd7 {[%clk 0:01:35.6]} 12. Nxd7 {[%clk 0:02:33.2]} 12... Nxd7 {[%clk
0:01:32.9]} 13. O-O {[%clk 0:02:27.9]} 13... O-O {[%clk 0:01:25.4]} 14. Rfe1
{[%clk 0:02:13]} 14... a6 {[%clk 0:01:10.7]} 15. Bd3 {[%clk 0:02:08.5]} 15...
Qc7 {[%clk 0:01:10.7]} 16. Nf1 {[%clk 0:02:06.4]} 16... Nf6 {[%clk 0:01:00.4]}
17. Qc2 {[%clk 0:02:00.6]} 17... Na5 {[%clk 0:00:53.4]} 18. Bg5 {[%clk
0:02:01.1]} 18... h6 {[%clk 0:00:44.5]} 19. Bxf6 {[%clk 0:01:54.2]} 19... gxf6
{[%clk 0:00:46.4]} 20. Qd2 {[%clk 0:01:55.7]} 20... Kg7 {[%clk 0:00:37.8]} 21.
Ng3 {[%clk 0:01:42.2]} 21... Bxg3 {[%clk 0:00:17.5]} 22. hxg3 {[%clk 0:01:44.1]}
22... Nc4 {[%clk 0:00:18.3]} 23. Qe2 {[%clk 0:01:33.5]} 23... f5 {[%clk
0:00:19.3]} 24. g4 {[%clk 0:01:30.8]} 24... f4 {[%clk 0:00:11.7]} 25. b3 {[%clk
0:01:19.6]} 25... Nb6 {[%clk 0:00:05.7]} 26. Rac1 {[%clk 0:00:42.1]} 26... Rae8
{[%clk 0:00:05.4]} 27. c4 {[%clk 0:00:36]} 27... Qb8 {[%clk 0:00:03.7]} 28. c5
{[%clk 0:00:34.8]} 28... Nd7 {[%clk 0:00:04.6]} 29. c6 {[%clk 0:00:31.3]} 29...
bxc6 {[%clk 0:00:06.5]} 30. Rxc6 {[%clk 0:00:32]} 30... a5 {[%clk 0:00:06.5]}
31. Qd2 {[%clk 0:00:30.9]} 31... Qb4 {[%clk 0:00:04.4]} 32. Qxb4 {[%clk
0:00:28.8]} 32... axb4 {[%clk 0:00:06.3]} 33. Rec1 {[%clk 0:00:30.3]} 33... Ra8
{[%clk 0:00:06.5]} 34. R6c2 {[%clk 0:00:28.2]} 34... Nf6 {[%clk 0:00:06.5]} 35.
f3 {[%clk 0:00:29.3]} 35... Ra3 {[%clk 0:00:04.7]} 36. Bb5 {[%clk 0:00:28.1]}
36... Rb8 {[%clk 0:00:04]} 37. Ba4 {[%clk 0:00:29.2]} 37... Ne8 {[%clk
0:00:03.5]} 38. Kf2 {[%clk 0:00:21.2]} 38... Nd6 {[%clk 0:00:04.3]} 39. g3
{[%clk 0:00:22.9]} 39... fxg3+ {[%clk 0:00:04.8]} 40. Kxg3 {[%clk 0:00:24.8]}
40... Nc4 {[%clk 0:00:06.3]} 41. Re1 {[%clk 0:00:14.5]} 41... Nb6 {[%clk
0:00:06]} 42. Bb5 {[%clk 0:00:16.1]} 42... Rba8 {[%clk 0:00:04.1]} 43. Ree2
{[%clk 0:00:17.7]} 43... R8a5 {[%clk 0:00:04.4]} 44. Bd3 {[%clk 0:00:18.5]}
44... Nd7 {[%clk 0:00:04.6]} 45. f4 {[%clk 0:00:19.7]} 45... Kf6 {[%clk
0:00:03.4]} 46. Kf3 {[%clk 0:00:21.2]} 46... Nf8 {[%clk 0:00:04.8]} 47. Rh2
{[%clk 0:00:22.9]} 47... Kg7 {[%clk 0:00:05.1]} 48. Rcg2 {[%clk 0:00:24.6]}
48... f6 {[%clk 0:00:05.2]} 49. g5 {[%clk 0:00:26.3]} 49... hxg5 {[%clk
0:00:07]} 50. fxg5 {[%clk 0:00:28.2]} 50... fxg5 {[%clk 0:00:08.4]} 51. Rxg5+
{[%clk 0:00:29.9]} 51... Kf6 {[%clk 0:00:09.6]} 52. Rgg2 {[%clk 0:00:30.5]}
52... Ke7 {[%clk 0:00:10.2]} 53. Rh8 {[%clk 0:00:23.2]} 53... Rxa2 {[%clk
0:00:04]} 54. Rg7+ {[%clk 0:00:17.9]} 54... Kf6 {[%clk 0:00:05.3]} 55. Rb7
{[%clk 0:00:19.6]} 55... Ra8 {[%clk 0:00:03]} 56. Rxb4 {[%clk 0:00:13.4]} 56...
Rd2 {[%clk 0:00:03.5]} 57. Ke3 {[%clk 0:00:14.7]} 57... Rd1 {[%clk 0:00:03.6]}
58. Rb7 {[%clk 0:00:14.8]} 58... Ng6 {[%clk 0:00:03]} 59. Rh6 {[%clk 0:00:15.3]}
59... Rg8 {[%clk 0:00:03.8]} 60. Ke2 {[%clk 0:00:13.8]} 60... Rg1 {[%clk
0:00:03]} 61. Rb6 {[%clk 0:00:14.9]} 61... Rg7 {[%clk 0:00:03]} 62. Kf2 {[%clk
0:00:15.1]} 62... Rg4 {[%clk 0:00:03.8]} 63. Ke3 {[%clk 0:00:15]} 63... Rg3+
{[%clk 0:00:05]} 64. Kd2 {[%clk 0:00:16.7]} 64... Rg2+ {[%clk 0:00:03.9]} 65.
Kc3 {[%clk 0:00:16.7]} 65... Rc7+ {[%clk 0:00:04.1]} 66. Kb4 {[%clk 0:00:17.6]}
66... Rd2 {[%clk 0:00:03.3]} 67. Rxg6+ {[%clk 0:00:17.2]} 67... Kf7 {[%clk
0:00:04.7]} 68. Rg3 {[%clk 0:00:16.1]} 68... Kf6 {[%clk 0:00:03.5]} 69. Rb8
{[%clk 0:00:16.7]} 69... Rb2 {[%clk 0:00:03.4]} 70. Rf8+ {[%clk 0:00:17.5]}
70... Ke7 {[%clk 0:00:04.8]} 71. Rg7+ {[%clk 0:00:18]} 71... Kd6 {[%clk
0:00:05.5]} 72. Rd8+ {[%clk 0:00:18.4]} 72... Kc6 {[%clk 0:00:06.2]} 73. Bb5+
{[%clk 0:00:19.6]} 73... Kb7 {[%clk 0:00:07.3]} 74. Rdd7 {[%clk 0:00:19.3]}
74... Rxd7 {[%clk 0:00:05.4]} 75. Rxd7+ {[%clk 0:00:21.2]} 75... Kb6 {[%clk
0:00:06.4]} 76. Rd6+ {[%clk 0:00:22.2]} 76... Kb7 {[%clk 0:00:07.5]} 77. Rxe6
{[%clk 0:00:22.9]} 77... Kc7 {[%clk 0:00:08.7]} 78. Kc5 {[%clk 0:00:23.1]} 78...
Rxb3 {[%clk 0:00:09]} 79. Re7+ {[%clk 0:00:23.2]} 79... Kd8 {[%clk 0:00:10.1]}
80. Rh7 {[%clk 0:00:23.6]} 80... Rb2 {[%clk 0:00:08.1]} 81. Kd6 {[%clk
0:00:23.5]} 81... Kc8 {[%clk 0:00:04.4]} 82. Bc6 {[%clk 0:00:25.1]} 1-0

[Event "*** Titled Tuesday Blitz"]
[Site "Chess.com"]
[Date "2019.10.01"]
[Round "1"]
[White "sofaceindisguise"]
[Black "2165149677570"]
[Result "1-0"]
[WhiteElo "2639"]
[BlackElo "2284"]
[TimeControl "180+2"]
[EndTime "13:11:23 PDT"]
[Termination "sofaceindisguise won by checkmate"]

1. c4 {[%clk 0:03:00.5]} 1... c5 {[%clk 0:03:00]} 2. Nf3 {[%clk 0:03:01.8]} 2...
Nc6 {[%clk 0:03:01.1]} 3. Nc3 {[%clk 0:03:03.6]} 3... g6 {[%clk 0:03:02]} 4. d4
{[%clk 0:03:04.2]} 4... cxd4 {[%clk 0:03:03.7]} 5. Nxd4 {[%clk 0:03:05.5]} 5...
Nf6 {[%clk 0:03:03.7]} 6. e4 {[%clk 0:03:06.1]} 6... Nxd4 {[%clk 0:03:03.7]} 7.
Qxd4 {[%clk 0:03:06.7]} 7... d6 {[%clk 0:03:04.6]} 8. Bg5 {[%clk 0:02:54.1]}
8... Bg7 {[%clk 0:03:05.6]} 9. Nd5 {[%clk 0:02:45.4]} 9... O-O {[%clk
0:02:39.5]} 10. Bxf6 {[%clk 0:02:40.5]} 10... exf6 {[%clk 0:02:38]} 11. Qd2
{[%clk 0:02:41.9]} 11... f5 {[%clk 0:02:39.1]} 12. exf5 {[%clk 0:02:42.7]} 12...
Re8+ {[%clk 0:02:40.1]} 13. Be2 {[%clk 0:02:44]} 13... Bxf5 {[%clk 0:02:39.8]}
14. O-O {[%clk 0:02:44.7]} 14... Rc8 {[%clk 0:02:25.9]} 15. Rad1 {[%clk
0:02:44.4]} 15... b5 {[%clk 0:02:11.7]} 16. b3 {[%clk 0:02:41.7]} 16... bxc4
{[%clk 0:02:11.1]} 17. Bxc4 {[%clk 0:02:43.6]} 17... Qh4 {[%clk 0:02:05]} 18. g3
{[%clk 0:02:43.5]} 18... Qh5 {[%clk 0:01:50.9]} 19. Nf4 {[%clk 0:02:41.9]} 19...
Qf3 {[%clk 0:01:52]} 20. Qxd6 {[%clk 0:02:37.2]} 20... Be5 {[%clk 0:01:53.2]}
21. Qd5 {[%clk 0:02:15.4]} 21... Be4 {[%clk 0:01:43]} 22. Qxf7+ {[%clk
0:02:09.7]} 22... Kh8 {[%clk 0:01:42.7]} 23. Nxg6+ {[%clk 0:02:02.1]} 23... hxg6
{[%clk 0:01:40.7]} 24. Qxf3 {[%clk 0:02:02.6]} 24... Bxf3 {[%clk 0:01:42.6]} 25.
Rd7 {[%clk 0:02:00]} 25... Rc7 {[%clk 0:01:30.3]} 26. Rd2 {[%clk 0:01:54]} 26...
a5 {[%clk 0:01:08.2]} 27. Re1 {[%clk 0:01:40.9]} 27... Rce7 {[%clk 0:01:00.5]}
28. Rd3 {[%clk 0:01:28.4]} 28... Ba8 {[%clk 0:00:48.1]} 29. Bb5 {[%clk
0:01:27.6]} 29... Rb8 {[%clk 0:00:46.4]} 30. Rde3 {[%clk 0:01:28]} 30... Rxb5
{[%clk 0:00:47.2]} 31. Kf1 {[%clk 0:01:25]} 31... Bb7 {[%clk 0:00:29.7]} 32. f4
{[%clk 0:01:25.5]} 32... Ba6 {[%clk 0:00:31.2]} 33. Kg2 {[%clk 0:01:24.4]} 33...
Bb7+ {[%clk 0:00:30.5]} 34. Kh3 {[%clk 0:01:25.8]} 34... Bc8+ {[%clk 0:00:31.4]}
35. g4 {[%clk 0:01:17.7]} 35... Bxf4 {[%clk 0:00:23.4]} 36. Rxe7 {[%clk
0:01:17.8]} 36... Rh5+ {[%clk 0:00:25]} 37. Kg2 {[%clk 0:01:18.9]} 37... Bxg4
{[%clk 0:00:24.4]} 38. Re8+ {[%clk 0:01:15.4]} 38... Kg7 {[%clk 0:00:25.4]} 39.
R1e7+ {[%clk 0:01:07.3]} 39... Kf6 {[%clk 0:00:26.5]} 40. Re4 {[%clk 0:01:08.3]}
40... Rxh2+ {[%clk 0:00:26.5]} 41. Kg1 {[%clk 0:01:09.7]} 41... Rxa2 {[%clk
0:00:07.7]} 42. Rxf4+ {[%clk 0:01:03.6]} 42... Kg5 {[%clk 0:00:08.9]} 43. Ra4
{[%clk 0:01:04.9]} 43... Rb2 {[%clk 0:00:07.6]} 44. Rxa5+ {[%clk 0:01:04.1]}
44... Kh4 {[%clk 0:00:09]} 45. Re3 {[%clk 0:01:02.6]} 45... Bf5 {[%clk
0:00:06.5]} 46. Ra4+ {[%clk 0:00:58.7]} 46... Kg5 {[%clk 0:00:07.6]} 47. Rc4
{[%clk 0:00:57]} 47... Kh5 {[%clk 0:00:05.4]} 48. b4 {[%clk 0:00:57.4]} 48... g5
{[%clk 0:00:05.5]} 49. Re5 {[%clk 0:00:55]} 49... Bd3 {[%clk 0:00:06.6]} 50. Rd4
{[%clk 0:00:56.1]} 50... Ba6 {[%clk 0:00:03.9]} 51. Rd6 {[%clk 0:00:50.8]} 51...
Bc4 {[%clk 0:00:03]} 52. Rb6 {[%clk 0:00:45.9]} 52... Kg4 {[%clk 0:00:03.5]} 53.
Re4+ {[%clk 0:00:46.9]} 53... Kg3 {[%clk 0:00:04.6]} 54. Re3+ {[%clk 0:00:44.5]}
54... Kf4 {[%clk 0:00:05.2]} 55. Rc3 {[%clk 0:00:44.2]} 55... Rb1+ {[%clk
0:00:06]} 56. Kf2 {[%clk 0:00:44.9]} 56... Rb2+ {[%clk 0:00:07.1]} 57. Ke1
{[%clk 0:00:45.3]} 57... Bd5 {[%clk 0:00:07.3]} 58. Rf6+ {[%clk 0:00:42.6]}
58... Kg4 {[%clk 0:00:06]} 59. Rd6 {[%clk 0:00:41.4]} 59... Bf3 {[%clk
0:00:06.8]} 60. Rd4+ {[%clk 0:00:42.5]} 60... Kg3 {[%clk 0:00:05.6]} 61. Rdd3
{[%clk 0:00:43.9]} 61... g4 {[%clk 0:00:07]} 62. Rb3 {[%clk 0:00:45.4]} 62...
Rc2 {[%clk 0:00:07.8]} 63. b5 {[%clk 0:00:46.6]} 63... Re2+ {[%clk 0:00:08.1]}
64. Kd1 {[%clk 0:00:44.4]} 64... Rf2+ {[%clk 0:00:05.1]} 65. Kc1 {[%clk
0:00:45.4]} 65... Kg2 {[%clk 0:00:05.2]} 66. b6 {[%clk 0:00:46.4]} 66... g3
{[%clk 0:00:06.5]} 67. b7 {[%clk 0:00:42.1]} 67... Bxb7 {[%clk 0:00:07.3]} 68.
Rxb7 {[%clk 0:00:29.1]} 68... Rf3 {[%clk 0:00:07.7]} 69. Rd2+ {[%clk 0:00:25.4]}
69... Kf1 {[%clk 0:00:07.1]} 70. Kc2 {[%clk 0:00:21.8]} 70... g2 {[%clk
0:00:06.5]} 71. Rb1# {[%clk 0:00:22.7]} 1-0